bitfinex-derivatives/quotes_ETHF0:USTF0_20251025
["timestamp","ask_amount","ask_price","bid_price","bid_amount"]
[1761414902404,0.80120717,3936.4,3936.3,9.673672]
[1761414902592,0.80120717,3936.4,3936.3,9.6737076]
[1761414902903,0.80120717,3936.4,3936.3,9.9066076]
[1761414907210,0.80120717,3936.4,3936.3,10.2520076]
[1761414908812,0.80120717,3936.4,3936.3,10.4821076]
[1761414918412,1.71454479,3936.4,3936.3,9.79590878]
[1761414928420,0.80120717,3936.4,3936.3,10.4821076]
[1761414929022,0.56640717,3936.4,3936.3,10.4821076]
[1761414938436,0.56640717,3936.4,3936.3,9.79590878]
[1761414948427,0.56640717,3936.4,3936.3,10.4821076]
[1761414953240,0.56640717,3936.4,3936.3,1.5661076]
[1761414953650,0.77980717,3936.4,3936.3,1.5661076]
[1761414955938,0.56640717,3936.4,3936.3,1.5661076]
[1761414956943,0.00420717,3936.4,3936.3,1.5661076]
[1761414958238,0.80010717,3936.4,3936.3,0.7577076]
[1761414958445,2.16905788,3936.4,3936.3,0.60940878]
[1761414959140,2.16905788,3936.4,3936.3,0.84320878]
[1761414962249,0.80010717,3936.4,3936.3,0.84320878]
[1761414975657,0.35520717,3936.4,3936.3,0.84320878]
[1761414976062,0.58540717,3936.4,3936.3,0.84320878]
[1761414978967,0.00420717,3936.4,3936.3,0.84320878]
[1761414979265,0.32470717,3936.4,3936.3,0.84320878]
[1761414979467,0.55490717,3936.4,3936.3,0.84320878]
[1761414987266,0.77600717,3936.4,3936.3,0.29930878]
[1761414987473,0.55490717,3936.4,3936.3,0.87360878]
[1761414987872,0.55490717,3936.4,3936.3,1.55941537]
[1761414992867,0.00420717,3936.4,3936.3,1.55941537]
[1761414993371,0.32470717,3936.4,3936.3,1.55941537]
[1761414993772,0.00420717,3936.4,3936.3,1.55941537]
[1761414996874,0.00420717,3936.4,3936.3,1.55929885]
[1761415001872,0.00420717,3936.4,3936.3,0.87360878]
[1761415003181,0.00420717,3936.4,3936.3,1.55916336]
[1761415004878,0.00420717,3936.4,3936.3,1.55914675]
[1761415008482,0.00420717,3936.4,3936.3,0.87360878]
[1761415018190,0.00420717,3936.4,3936.3,1.55900345]
[1761415018390,0.00420717,3936.4,3936.3,0.87360878]
[1761415030904,0.00420717,3936.4,3936.3,2.24384899]
[1761415033406,0.00420717,3936.4,3936.3,4.94584899]
[1761415038505,0.00420717,3936.4,3936.3,3.57560878]
[1761415044210,0.00420717,3936.4,3936.3,4.94584899]
[1761415048007,0.78900717,3936.4,3936.3,13.85684899]
[1761415048510,0.78900717,3936.4,3936.3,12.48660878]
[1761415051312,0.78900717,3936.4,3936.3,9.78460878]
[1761415055717,0.78900717,3936.4,3936.3,0.87360878]
[1761415055914,0.78900717,3936.4,3936.3,9.78460878]
[1761415066314,0.56660717,3936.4,3936.3,9.78460878]
[1761415068225,0.00420717,3936.4,3936.3,9.78460878]
[1761415087232,0.34320717,3936.4,3936.3,9.78460878]
[1761415087436,0.00420717,3936.4,3936.3,9.78460878]
[1761415091647,0.00420717,3936.4,3936.3,11.15686153]
[1761415098448,0.00420717,3936.4,3936.3,9.78460878]
[1761415099448,0.00420717,3936.4,3936.3,10.69921045]
[1761415104651,0.00420717,3936.4,3936.3,13.40121045]
[1761415106351,0.32430717,3936.4,3936.3,12.48660878]
[1761415106850,0.00420717,3936.4,3936.3,12.48660878]
[1761415120559,0.35470717,3936.4,3936.3,12.48660878]
[1761415121059,0.57480717,3936.4,3936.3,12.48660878]
[1761415121762,0.35470717,3936.4,3936.3,12.48660878]
[1761415121959,0.00420717,3936.4,3936.3,12.48660878]
[1761415122164,0.00420717,3936.4,3936.3,13.85840279]
[1761415122764,0.35470717,3936.4,3936.3,13.85840279]
[1761415126765,0.00420717,3936.4,3936.3,13.85840279]
[1761415128573,0.00420717,3936.4,3936.3,13.4013031]
[1761415129967,0.35470717,3936.4,3936.3,4.4903031]
[1761415130172,0.57480717,3936.4,3936.3,13.3993031]
[1761415132572,0.35470717,3936.4,3936.3,13.3993031]
[1761415132769,0.00420717,3936.4,3936.3,13.3993031]
[1761415134179,0.35470717,3936.4,3936.3,13.3993031]
[1761415134374,0.35470717,3936.4,3936.3,10.6973031]
[1761415135376,0.00420717,3936.4,3936.3,10.6973031]
[1761415137178,0.35470717,3936.4,3936.3,10.6973031]
[1761415138579,0.35470717,3936.4,3936.3,9.78260878]
[1761415140173,0.00420717,3936.4,3936.3,9.78260878]
[1761415140477,0.00420717,3936.4,3936.3,12.48460878]
[1761415151793,0.00420717,3936.4,3936.3,14.31366746]
[1761415153392,0.00420717,3936.4,3936.3,12.48460878]
[1761415173802,0.34580717,3936.4,3936.3,12.48460878]
[1761415178011,0.00420717,3936.4,3936.3,12.48460878]
[1761415188615,0.00420717,3936.4,3936.3,14.31366746]
[1761415190313,0.34340717,3936.4,3936.3,12.48460878]
[1761415190516,0.56800717,3936.4,3936.3,12.48460878]
[1761415190716,0.56800717,3936.4,3936.3,3.57560878]
[1761415190916,0.56800717,3936.4,3936.3,12.48260878]
[1761415191212,0.56800717,3936.4,3936.3,3.57560878]
[1761415191419,0.78310717,3936.4,3936.3,12.48260878]
[1761415193713,0.78310717,3936.4,3936.3,9.78060878]
[1761415193913,0.56800717,3936.4,3936.3,9.78060878]
[1761415201919,0.78680717,3936.4,3936.3,9.78060878]
[1761415202130,0.78680717,3936.4,3936.3,0.87360878]
[1761415202423,0.78680717,3936.4,3936.3,9.78060878]
[1761415202619,0.34340717,3936.4,3936.3,9.78060878]
[1761415202815,0.00420717,3936.4,3936.3,9.78060878]
[1761415203726,0.32350717,3936.4,3936.3,9.78060878]
[1761415205127,0.55410717,3936.4,3936.3,9.78060878]
[1761415207326,0.55410717,3936.4,3936.3,10.69428315]
[1761415208531,0.77290717,3936.4,3936.3,10.69428315]
[1761415208733,0.3285,3936.3,3936.2,0.05965055]
[1761415208929,0.45360717,3936.4,3936.1,0.00288246]
[1761415208930,0.7826,3936.2,3936.1,0.00288246]
[1761415230248,1.69449337,3936.2,3936.1,0.00288246]
[1761415233351,0.7826,3936.2,3936.1,0.00288246]
[1761415235854,0.7826,3936.2,3936.1,0.55168246]
[1761415236758,0.7826,3936.2,3936.1,0.22558246]
[1761415237358,2.1512033,3936.2,3936.1,0.22558246]
[1761415238158,0.7826,3936.2,3936.1,0.22558246]
[1761415238754,1.69533892,3936.2,3936.1,0.22558246]
[1761415253062,1.69533892,3936.2,3936.1,0.79888246]
[1761415254157,1.69533892,3936.2,3936.1,0.46138246]
[1761415255268,1.69533892,3936.2,3936.1,0.22558246]
[1761415258269,0.7826,3936.2,3936.1,0.22558246]
[1761415268676,2.15170838,3936.2,3936.1,0.22558246]
[1761415271775,2.15170838,3936.2,3936.1,0.54798246]
[1761415272379,2.15170838,3936.2,3936.1,0.22558246]
[1761415272680,2.15170838,3936.2,3936.1,0.00288246]
[1761415278691,1.69587307,3936.2,3936.1,0.00288246]
[1761415279393,1.69587307,3936.2,3936.1,0.78158246]
[1761415279587,0.7826,3936.2,3936.1,1.69641798]
[1761415279894,0.7826,3936.2,3936.1,1.37401798]
[1761415280192,0.7826,3936.2,3936.1,0.45918246]
[1761415280395,0.7826,3936.2,3936.1,0.78158246]
[1761415280796,0.7826,3936.2,3936.1,0.45918246]
[1761415281094,0.7826,3936.2,3936.1,0.22458246]
[1761415282090,0.7826,3936.2,3936.1,0.00288246]
[1761415286095,0.7826,3936.2,3936.1,0.68823813]
[1761415287406,0.7826,3936.2,3936.1,0.90993813]
[1761415288498,0.7826,3936.2,3936.1,0.68823813]
[1761415294503,0.7826,3936.2,3936.1,0.90993813]
[1761415294699,0.7826,3936.2,3936.1,0.22458246]
[1761415294899,0.7826,3936.2,3936.1,0.54698246]
[1761415297505,0.7826,3936.2,3936.1,0.78158246]
[1761415299808,0.7826,3936.2,3936.1,1.4667814]
[1761415301107,0.7826,3936.2,3936.1,0.78158246]
[1761415309114,0.7826,3936.2,3936.1,1.69641798]
[1761415318904,0.7826,3936.2,3936.1,0.78158246]
[1761415322319,0.7826,3936.2,3936.1,1.46765608]
[1761415323019,0.7846,3936.2,3936.1,0.91065608]
[1761415323817,0.7846,3936.2,3936.1,1.23425608]
[1761415328217,0.7846,3936.2,3936.1,1.46185608]
[1761415328827,0.7846,3936.2,3936.1,1.69061798]
[1761415329919,0.7846,3936.2,3936.1,0.77578246]
[1761415335232,0.7846,3936.2,3936.1,1.69051774]
[1761415340231,0.7846,3936.2,3936.1,1.13931774]
[1761415341429,0.7846,3936.2,3936.1,0.91761774]
[1761415348044,0.7846,3936.2,3936.1,1.69981774]
[1761415349239,0.7846,3936.2,3936.1,1.36751774]
[1761415349752,0.7846,3936.2,3936.1,1.13441774]
[1761415350351,0.7846,3936.2,3936.1,0.91761774]
[1761415354056,0.7846,3936.2,3936.1,1.13441774]
[1761415354857,0.7846,3936.2,3936.1,1.46671774]
[1761415355656,0.7846,3936.2,3936.1,1.13441774]
[1761415358062,0.7846,3936.2,3936.1,1.46741774]
[1761415358962,0.7846,3936.2,3936.1,1.23873823]
[1761415359259,0.002,3936.2,3936.1,1.45493823]
[1761415363364,0.5654,3936.2,3936.1,1.45493823]
[1761415367564,0.7881,3936.2,3936.1,1.45493823]
[1761415368863,0.7881,3936.2,3936.1,1.68361774]
[1761415370567,0.7881,3936.2,3936.1,1.35061774]
[1761415371257,0.7881,3936.2,3936.1,1.68361774]
[1761415379769,0.7881,3936.2,3936.1,0.76888246]
[1761415380868,0.7881,3936.2,3936.1,1.45499261]
[1761415381566,0.7881,3936.2,3936.1,0.76888246]
[1761415386977,0.7881,3936.2,3936.1,0.00288246]
[1761415389767,1.70137307,3936.2,3935.6,0.68611015]
[1761415389975,0.7752,3935.7,3935.6,0.68611015]
[1761415390776,0.7752,3935.7,3935.6,0.68897453]
[1761415390972,0.7752,3935.7,3935.6,0.00286438]
[1761415391172,0.7752,3935.7,3935.6,0.68816144]
[1761415391371,0.7752,3935.7,3935.6,0.91096144]
[1761415392381,0.7752,3935.7,3935.6,0.22566438]
[1761415396687,0.7752,3935.7,3935.6,0.77916438]
[1761415399285,0.7752,3935.7,3935.6,0.44696438]
[1761415403496,0.7752,3935.7,3935.6,0.77916438]
[1761415406400,0.7752,3935.7,3935.6,1.46407123]
[1761415406806,0.7752,3935.7,3935.6,1.46437547]
[1761415409004,0.7752,3935.7,3935.6,0.77916438]
[1761415415705,0.7752,3935.7,3935.6,0.44696438]
[1761415415899,1.68847307,3935.7,3935.6,0.22566438]
[1761415417209,0.7752,3935.7,3935.6,0.00286438]
[1761415418202,0.775,3935.3,3935.2,0.90831109]
[1761415418504,0.775,3935.3,3935.2,0.2231]
[1761415420211,0.775,3935.3,3935.2,0.22510236]
[1761415420813,0.775,3935.3,3935.2,0.6877361]
[1761415421003,0.777,3935.3,3935.2,0.6877361]
[1761415421809,0.777,3935.3,3935.2,0.00200236]
[1761415440931,0.777,3935.3,3935.2,0.23660236]
[1761415441133,0.777,3935.3,3935.2,0.00200236]
[1761415441734,0.3333,3935.2,3935.0,0.2346]
[1761415441925,0.7888,3935.1,3935.0,0.2346]
[1761415442832,0.7888,3935.1,3935.0,0.23710732]
[1761415443327,0.7888,3935.1,3935.0,0.00250732]
[1761415445531,0.7888,3935.1,3935.0,0.20620732]
[1761415448141,0.7888,3935.1,3935.0,0.00250732]
[1761415448441,0.7888,3935.1,3935.0,0.68824106]
[1761415448938,0.7888,3935.1,3935.0,0.00250732]
[1761415451731,0.7888,3935.1,3935.0,0.20560732]
[1761415452244,0.7888,3935.1,3935.0,0.00250732]
[1761415459045,0.7888,3935.1,3935.0,0.68824106]
[1761415470148,0.7888,3935.1,3935.0,0.00250732]
[1761415471244,0.002,3935.3,3933.9,0.6606]
[1761415471245,0.7908,3934.3,3934.2,0.88883374]
[1761415471551,0.7908,3934.3,3934.2,0.68573374]
[1761415472251,0.7908,3934.3,3934.2,0.00261774]
[1761415473347,0.7908,3934.3,3933.6,4.27648234]
[1761415473348,0.1362,3933.5,3933.2,0.66069]
[1761415473555,0.5664,3933.4,3933.3,0.6093]
[1761415474250,0.56928996,3933.4,3933.3,0.61130798]
[1761415474640,0.79368996,3933.4,3933.3,0.40820798]
[1761415478756,0.79568996,3933.4,3933.3,0.40820798]
[1761415481645,0.57128996,3933.4,3933.3,0.40820798]
[1761415481853,0.00488996,3933.4,3933.3,1.06978798]
[1761415482360,0.75698996,3933.4,3933.3,0.40820798]
[1761415483961,0.75698996,3933.4,3933.3,0.61220798]
[1761415485663,0.33058996,3933.4,3933.3,0.61220798]
[1761415486354,0.54288996,3933.4,3933.3,0.61220798]
[1761415491265,0.33058996,3933.4,3933.3,0.61220798]
[1761415493868,0.54288996,3933.4,3933.3,0.61220798]
[1761415500267,0.33058996,3933.4,3933.3,0.61220798]
[1761415501371,0.56248996,3933.4,3933.3,0.61220798]
[1761415502577,0.78628996,3933.4,3933.3,0.40820798]
[1761415504877,0.78628996,3933.4,3933.3,0.61200798]
[1761415507980,0.33058996,3933.4,3933.3,0.61200798]
[1761415508476,0.55718996,3933.4,3933.3,0.61200798]
[1761415508984,0.55718996,3933.4,3933.3,1.52489503]
[1761415509284,0.33058996,3933.4,3933.3,1.52489503]
[1761415509478,0.55718996,3933.4,3933.3,1.52489503]
[1761415511175,0.55718996,3933.4,3933.3,0.61200798]
[1761415514973,0.78988996,3933.4,3933.3,0.40820798]
[1761415515178,0.2266,3933.9,3933.8,0.4076]
[1761415515388,0.2266,3933.9,3933.8,0.6114]
[1761415515682,0.551,3933.9,3933.8,0.6114]
[1761415516080,0.55371442,3933.9,3933.8,0.6114]
[1761415516681,0.78641442,3933.9,3933.8,0.4076]
[1761415521890,0.78641442,3933.9,3933.8,0.6114]
[1761415522995,0.55371442,3933.9,3933.8,0.6114]
[1761415528503,0.3244,3933.8,3933.6,0.91501813]
[1761415528706,0.7837,3933.6,3933.5,9.83501813]
[1761415529210,0.7837,3933.6,3933.5,8.92]
[1761415530396,0.7837,3933.6,3933.5,9.1238]
[1761415532817,0.9167,3933.5,3933.4,0.91501813]
[1761415533009,0.9167,3933.5,3933.4,10.04181813]
[1761415533315,0.9167,3933.5,3933.4,10.24561813]
[1761415534712,0.9167,3933.5,3933.4,10.44941813]
[1761415536510,0.3244,3933.8,3933.5,0.2038]
[1761415536720,0.2266,3933.8,3933.7,1.29716953]
[1761415537011,0.2266,3933.8,3933.7,1.09336953]
[1761415537217,0.7837,3933.8,3933.7,1.09336953]
[1761415538220,0.7837,3933.8,3933.7,0.88956953]
[1761415539418,0.7837,3933.8,3933.7,1.09286953]
[1761415541313,0.7837,3933.8,3933.7,0.4071]
[1761415547725,0.7837,3933.8,3933.7,0.2038]
[1761415552724,0.7837,3933.8,3933.7,0.4071]
[1761415553126,0.7837,3933.8,3933.7,0.2038]
[1761415553423,0.7837,3933.8,3933.5,0.68631831]
[1761415553723,0.3325,3933.7,3933.5,0.88961831]
[1761415554424,0.7799,3933.6,3933.5,0.88961831]
[1761415554626,0.7799,3933.6,3933.5,9.81261831]
[1761415558428,0.7799,3933.6,3933.5,9.1263]
[1761415562732,0.7799,3933.6,3933.5,9.3304]
[1761415574732,0.7799,3933.6,3933.5,0.4074]
[1761415574935,0.7799,3933.6,3933.5,9.5315]
[1761415579540,0.00271442,3933.9,3933.7,0.4082]
[1761415579744,0.00271442,3933.9,3933.8,10.9038272]
[1761415580244,0.00271442,3933.9,3933.8,9.5313]
[1761415585844,0.00271442,3933.9,3933.8,12.2333]
[1761415589159,0.00271442,3933.9,3933.8,12.91876217]
[1761415599065,0.00271442,3933.9,3933.8,12.2333]
[1761415608271,0.00271442,3933.9,3933.8,13.6058272]
[1761415609175,0.32911442,3933.9,3933.8,13.6058272]
[1761415615277,0.32911442,3933.9,3933.8,12.2333]
[1761415621684,0.77661442,3933.9,3933.8,12.0242]
[1761415622179,0.77661442,3933.9,3933.8,4.27921572]
[1761415622383,0.77661442,3933.9,3933.8,13.19521572]
[1761415627192,0.77661442,3933.9,3933.8,10.49321572]
[1761415627894,0.55721442,3933.9,3933.8,10.69691572]
[1761415628191,0.32911442,3933.9,3933.8,10.90081572]
[1761415639103,0.32911442,3933.9,3933.8,9.5277]
[1761415645713,0.54551442,3933.9,3933.8,9.5277]
[1761415646914,0.77401442,3933.9,3933.8,9.1201]
[1761415647214,0.77401442,3933.9,3933.8,0.2041]
[1761415647415,0.4449,3933.7,3933.6,1.11910091]
[1761415647617,0.7707,3933.7,3933.6,10.03310091]
[1761415649118,0.7707,3933.7,3933.6,10.49101572]
[1761415653321,0.7707,3933.7,3933.6,10.69491572]
[1761415654121,0.7707,3933.7,3933.6,9.3218]
[1761415656522,0.7707,3933.7,3933.6,0.4078]
[1761415674747,0.2253,3933.5,3933.4,1.37311572]
[1761415675047,0.2253,3933.5,3933.3,0.00200798]
[1761415675048,0.7999,3933.4,3933.3,0.00200798]
[1761415677151,0.7999,3933.4,3933.3,0.68788276]
[1761415679158,0.7999,3933.4,3933.3,0.00200798]
[1761415679961,0.4171,3933.4,3933.3,0.00200798]
[1761415681959,0.7358,3933.4,3933.3,0.00200798]
[1761415686364,0.4634,3933.2,3933.1,1.03448276]
[1761415686671,0.7821,3933.2,3933.1,1.03448276]
[1761415686867,0.7821,3933.2,3933.1,1.26448276]
[1761415687258,0.7821,3933.2,3933.1,1.03448276]
[1761415687466,0.7821,3933.2,3933.1,1.26636514]
[1761415689061,0.7821,3933.2,3933.1,0.58168238]
[1761415689762,0.7821,3933.2,3933.1,0.79808238]
[1761415690065,0.5494,3933.4,3933.3,0.7988]
[1761415690366,0.7623,3933.4,3933.3,0.7988]
[1761415700064,0.4316,3933.4,3933.1,0.00188238]
[1761415700264,0.4316,3933.4,3931.5,3.19510468]
[1761415700265,0.772,3932.0,3931.5,3.19510468]
[1761415700562,0.0707,3932.5,3931.7,0.5675]
[1761415700563,0.7403,3931.8,3931.7,0.5675]
[1761415701267,0.7403,3931.8,3931.7,0.57016091]
[1761415701966,0.7403,3931.8,3931.7,0.80146091]
[1761415703671,0.7403,3931.8,3931.7,0.34156091]
[1761415706571,0.7403,3931.8,3931.7,0.57016091]
[1761415710670,0.4316,3931.8,3931.7,0.80146091]
[1761415713577,0.7403,3932.3,3932.2,0.7988]
[1761415714979,0.4316,3932.3,3932.2,0.7988]
[1761415715677,0.3087,3932.8,3932.3,0.3389]
[1761415716076,0.2187,3932.4,3932.3,0.7988]
[1761415720567,1.14415402,3932.9,3932.3,0.4599]
[1761415720773,0.7615,3932.9,3932.8,0.5475]
[1761415723381,1.67205402,3932.9,3932.8,0.5475]
[1761415725083,1.67205402,3932.9,3932.5,0.1284]
[1761415725386,0.7615,3932.6,3932.5,0.3225]
[1761415725581,0.7615,3932.6,3932.5,0.5475]
[1761415726081,0.7615,3932.6,3932.5,0.9079]
[1761415727886,0.4522,3932.6,3932.5,0.9079]
[1761415739090,1.81894854,3932.6,3932.5,0.9079]
[1761415742295,0.4522,3932.6,3932.5,0.9079]
[1761415746098,0.2336,3932.6,3932.5,0.9079]
[1761415758805,0.4657,3932.6,3932.5,0.9079]
[1761415759006,0.775,3932.6,3932.5,0.9079]
[1761415759403,0.4657,3932.6,3932.5,0.9079]
[1761415773911,1.82110804,3932.8,3932.6,0.3454]
[1761415774106,1.82110804,3932.8,3932.7,0.8047]
[1761415774311,2.05170804,3932.8,3932.7,0.8047]
[1761415775523,1.82110804,3932.8,3932.7,0.8047]
[1761415775720,1.82110804,3933.0,3932.9,0.4593]
[1761415775910,1.82110804,3933.1,3933.0,0.7095]
[1761415776115,5.0366,3933.2,3933.1,0.3454]
[1761415776323,5.0366,3933.2,3933.1,0.8047]
[1761415779720,4.806,3933.2,3933.1,0.8047]
[1761415779916,3.03088505,3933.6,3933.5,0.7016]
[1761415781333,0.7545,3933.6,3933.5,0.7016]
[1761415784537,0.4451,3933.6,3933.5,0.925]
[1761415784737,0.7545,3933.6,3933.5,0.925]
[1761415795544,0.4451,3933.6,3933.5,0.925]
[1761415795844,2.05283009,3933.8,3933.7,0.4575]
[1761415796048,2.05283009,3933.8,3933.7,0.792]
[1761415803144,2.27783009,3933.8,3933.7,0.792]
[1761415804153,0.4541,3933.8,3933.7,0.792]
[1761415806255,10.76324945,3934.0,3933.7,0.4575]
[1761415806445,0.23851442,3933.9,3933.7,0.4575]
[1761415806647,0.23851442,3933.9,3933.8,0.793]
[1761415811654,0.00271442,3933.9,3933.8,0.793]
[1761415812059,0.23821442,3933.9,3933.8,0.793]
[1761415815262,0.00271442,3933.9,3933.8,0.793]
[1761415816362,1.3702622,3933.9,3933.8,0.793]
[1761415817166,0.00271442,3933.9,3933.8,0.793]
[1761415817466,1.37021196,3933.9,3933.8,0.793]
[1761415819257,0.00271442,3933.9,3933.8,0.793]
[1761415834277,1.37107869,3933.9,3933.8,0.793]
[1761415841379,1.59647869,3933.9,3933.8,0.793]
[1761415841780,1.81207869,3933.9,3933.8,0.793]
[1761415843088,2.12107869,3933.9,3933.8,0.793]
[1761415844289,0.75271442,3933.9,3933.8,0.793]
[1761415845981,0.75271442,3933.9,3933.8,0.573]
[1761415846491,0.44371442,3933.9,3933.8,0.8042]
[1761415847085,0.00271442,3933.9,3933.8,0.8042]
[1761415848581,0.22811442,3933.9,3933.8,0.8042]
[1761415849691,0.00271442,3933.9,3933.8,0.8042]
[1761415851687,0.91633061,3933.9,3933.8,0.8042]
[1761415852089,0.91633061,3933.9,3933.8,8.8042]
[1761415852090,0.00271442,3933.9,3933.8,8.8042]
[1761415852281,1.82644165,3934.7,3934.6,0.8042]
[1761415852685,0.2254,3934.8,3934.7,0.3444]
[1761415852882,0.2254,3934.8,3934.7,0.8042]
[1761415853274,0.22802559,3934.8,3934.7,0.80648947]
[1761415855082,0.00262559,3934.8,3934.7,0.80648947]
[1761415874303,1.36886637,3934.8,3934.7,0.80648947]
[1761415878198,0.00262559,3934.8,3934.7,0.80648947]
[1761415884205,1.37011707,3934.8,3934.7,0.80648947]
[1761415895119,0.00262559,3934.8,3934.7,0.80648947]
[1761415897825,0.91643443,3934.8,3934.7,0.80648947]
[1761415901625,0.002,3935.3,3934.7,0.80648947]
[1761415901822,0.002,3935.3,3935.2,0.777]
[1761415902727,0.00508887,3935.3,3935.2,0.777]
[1761415908630,2.13534165,3936.1,3935.2,1.9204]
[1761415908830,0.4381,3936.1,3936.0,0.9104]
[1761415909830,0.44052298,3936.1,3936.0,0.9104]
[1761415914540,0.74942298,3936.1,3936.0,0.9104]
[1761415922445,0.44052298,3936.1,3936.0,0.9104]
[1761415922938,1.82644165,3936.7,3936.0,0.5858]
[1761415923140,0.2183,3937.3,3937.2,0.4394]
[1761415923345,0.4335,3937.3,3937.2,0.4394]
[1761415923645,0.4335,3937.3,3937.2,0.7595]
[1761415924047,0.4365513,3937.3,3937.2,0.7595]
[1761415932051,0.0030513,3937.3,3937.2,1.21663]
[1761415941856,0.0030513,3937.3,3937.2,0.7595]
[1761415948668,0.2291513,3937.3,3937.2,0.7595]
[1761415948868,0.7576513,3937.3,3937.2,0.5459]
[1761415949263,0.4480513,3937.3,3937.2,0.7739]
[1761415951068,0.0030513,3937.3,3937.2,0.7739]
[1761415969186,0.91760505,3937.3,3937.2,0.7739]
[1761415980894,0.0030513,3937.3,3937.2,1.45703935]
[1761415986499,0.0030513,3937.3,3937.2,0.7739]
[1761415987899,0.0030513,3937.3,3937.2,1.45703935]
[1761415988301,0.0030513,3937.3,3937.2,0.7739]
[1761415990304,0.91455375,3937.6,3937.5,1.37779]
[1761415990499,1.39383063,3937.8,3937.5,1.37779]
[1761415990500,0.91455375,3937.7,3937.6,0.7889]
[1761415991195,0.91718267,3937.7,3937.6,0.79206423]
[1761415991501,0.00262892,3937.7,3937.6,1.47520358]
[1761415993498,0.00262892,3937.7,3937.6,0.79206423]
[1761415993704,0.00262892,3937.7,3937.6,1.47520358]
[1761415994308,0.00262892,3937.7,3937.6,0.79206423]
[1761416006706,0.91455375,3938.5,3938.3,0.3311]
[1761416006911,0.91455375,3938.5,3938.4,0.7889]
[1761416007305,1.14945375,3938.5,3938.4,0.7889]
[1761416007706,1.15216234,3938.5,3938.4,0.7889]
[1761416009308,0.23760859,3938.5,3938.4,0.7889]
[1761416010817,0.00270859,3938.5,3938.4,0.7889]
[1761416011514,0.45850859,3938.5,3938.4,0.7889]
[1761416012918,0.76690859,3938.5,3938.4,0.7889]
[1761416017515,0.7642,3938.2,3938.1,0.5567]
[1761416018025,0.4558,3938.2,3938.1,0.7889]
[1761416020624,1.68500249,3938.4,3938.3,0.7954]
[1761416021416,0.772,3938.4,3938.3,0.7954]
[1761416022514,0.772,3938.4,3938.3,0.3462]
[1761416023821,0.772,3938.4,3938.3,0.5658]
[1761416025021,0.772,3938.4,3938.3,0.7954]
[1761416025213,0.463,3938.4,3938.3,0.7954]
[1761416025924,0.772,3938.4,3938.3,0.3462]
[1761416026717,0.772,3938.4,3938.0,0.1318]
[1761416026923,0.772,3938.0,3937.9,0.3462]
[1761416030428,0.309,3937.9,3937.7,0.3462]
[1761416030622,0.772,3937.8,3937.7,0.5658]
[1761416031319,0.772,3937.8,3937.7,0.3462]
[1761416033130,0.772,3937.8,3937.7,0.5658]
[1761416034129,0.772,3937.8,3937.7,0.7954]
[1761416035528,0.463,3937.8,3937.7,0.7954]
[1761416036729,0.772,3937.7,3937.6,0.00316423]
[1761416037136,0.772,3937.7,3937.6,0.34936423]
[1761416037332,1.68473984,3937.7,3937.6,0.34936423]
[1761416037835,1.68473984,3937.7,3937.6,0.56896423]
[1761416039135,1.68473984,3937.7,3937.6,0.34936423]
[1761416039535,1.68473984,3937.7,3937.6,0.00316423]
[1761416040434,0.91273984,3938.2,3938.0,0.1404]
[1761416040636,0.91273984,3938.2,3938.1,0.7895]
[1761416040936,1.13243984,3938.2,3938.1,0.7895]
[1761416041640,0.2197,3938.2,3938.1,0.7895]
[1761416055256,1.58894857,3938.2,3938.1,0.7895]
[1761416059167,0.2197,3938.2,3938.1,0.7895]
[1761416061566,0.91296077,3938.3,3938.2,0.7702]
[1761416061968,0.2145,3938.3,3938.2,1.2272]
[1761416068276,1.12746077,3938.3,3938.2,1.2272]
[1761416074874,0.91296077,3938.3,3938.2,1.2272]
[1761416075075,2.27638505,3939.4,3939.3,0.45688]
[1761416075276,0.3385,3940.1,3940.0,0.3527]
[1761416075779,0.7887,3940.1,3940.0,0.2356]
[1761416075972,0.79181815,3940.1,3940.0,0.2356]
[1761416076174,0.55611815,3940.1,3940.0,0.3527]
[1761416076373,0.00311815,3940.1,3940.0,1.02150575]
[1761416079083,0.00311815,3940.1,3940.0,0.3527]
[1761416079679,0.00511815,3940.1,3940.0,0.3527]
[1761416080686,0.00351815,3940.1,3940.0,0.3527]
[1761416080884,0.00191815,3940.1,3940.0,0.3527]
[1761416081085,0.32911815,3940.1,3940.0,0.3527]
[1761416081886,0.33101233,3940.1,3940.0,0.3527]
[1761416085780,0.55961233,3940.1,3940.0,0.2356]
[1761416085990,0.78501233,3940.1,3940.0,0.2356]
[1761416089593,0.78501233,3940.1,3940.0,0.1178]
[1761416089790,0.7812,3939.8,3939.7,0.68904]
[1761416089990,0.4589,3940.0,3939.9,0.45681]
[1761416090296,0.3272,3940.0,3939.9,0.80511]
[1761416091398,0.4589,3940.0,3939.9,0.80511]
[1761416098709,0.6875,3940.0,3939.9,0.80511]
[1761416101708,0.9112,3940.0,3939.9,0.68901]
[1761416101900,0.9112,3940.0,3939.9,0.57291]
[1761416102607,0.9112,3940.0,3939.9,0.69021]
[1761416103602,0.4396,3939.4,3939.3,0.79715243]
[1761416103810,0.3218,3939.4,3939.3,10.43012934]
[1761416105106,0.3218,3939.4,3939.3,11.78686197]
[1761416106303,0.3218,3939.4,3939.3,10.43012934]
[1761416106810,0.3218,3939.4,3939.3,11.79747017]
[1761416107810,0.5377,3939.4,3939.3,11.34059017]
[1761416108016,0.7614,3939.4,3939.3,11.22329017]
[1761416108308,0.7614,3939.4,3939.3,9.85594934]
[1761416111119,0.7614,3939.4,3939.3,9.73864934]
[1761416111615,0.7614,3939.4,3939.3,0.79564934]
[1761416111830,0.7614,3939.4,3939.3,9.62034934]
[1761416112107,0.7614,3939.4,3938.8,0.68398251]
[1761416112311,0.1327,3939.5,3938.9,0.68138022]
[1761416112312,0.9103,3939.0,3938.9,0.68138022]
[1761416112512,0.9103,3939.0,3938.9,0.79848022]
[1761416113214,0.9103,3939.0,3938.9,0.68138022]
[1761416114510,0.9103,3939.0,3938.9,0.79848022]
[1761416115310,0.3274,3938.9,3938.5,5.9911]
[1761416115512,0.7788,3938.7,3938.6,0.91356698]
[1761416115710,0.7788,3938.7,3938.6,0.67936698]
[1761416115908,0.7788,3938.7,3938.6,0.79646698]
[1761416117509,0.7788,3938.7,3938.6,0.91356698]
[1761416117914,0.7788,3938.7,3938.6,1.03066698]
[1761416118403,0.7788,3938.7,3938.6,0.91356698]